bitfinex/quotes_BTCUSD_20251120
["timestamp","ask_amount","ask_price","bid_price","bid_amount"]
[1763674706250,0.02144759,87437.0,87433.0,0.00041725]
[1763674706455,0.02144759,87436.0,87433.0,0.00041725]
[1763674706663,0.02144759,87435.0,87433.0,0.00041725]
[1763674706826,0.02144759,87434.0,87433.0,0.00041725]
[1763674707243,0.02144759,87442.0,87433.0,0.00041725]
[1763674707446,0.18588671,87441.0,87433.0,0.00041725]
[1763674707667,0.02144759,87440.0,87433.0,0.00041725]
[1763674710812,0.07111963,87440.0,87433.0,0.00041725]
[1763674711004,0.02144759,87439.0,87433.0,0.00041725]
[1763674711183,0.09070354,87439.0,87433.0,0.00041725]
[1763674711381,0.02144759,87438.0,87433.0,0.00041725]
[1763674712128,0.07111963,87438.0,87433.0,0.00041725]
[1763674712436,0.02144759,87437.0,87433.0,0.00041725]
[1763674712683,0.11476708,87441.0,87433.0,0.00041725]
[1763674712684,0.02144759,87436.0,87433.0,0.00041725]
[1763674712887,0.11476708,87441.0,87420.0,0.0004]
[1763674712888,0.04967204,87421.0,87420.0,0.0004]
[1763674713080,0.07111963,87421.0,87420.0,0.00044167]
[1763674713285,0.07111963,87421.0,87420.0,0.00156728]
[1763674713668,3.0,87439.0,87420.0,0.00156728]
[1763674713823,0.02144344,87438.0,87420.0,0.00044167]
[1763674714026,0.02144344,87437.0,87420.0,0.00044167]
[1763674714226,0.02144344,87436.0,87420.0,0.00044167]
[1763674714490,0.02144344,87435.0,87420.0,0.00044167]
[1763674714660,0.02144344,87434.0,87420.0,0.00044167]
[1763674714875,0.05968221,87437.0,87420.0,0.00044167]
[1763674714876,0.02144344,87433.0,87420.0,0.00044167]
[1763674715238,0.02143981,87432.0,87420.0,0.00044167]
[1763674715408,0.11476708,87441.0,87420.0,0.00044167]
[1763674715567,3.0,87439.0,87420.0,0.00044167]
[1763674715772,0.02143744,87438.0,87420.0,0.00044167]
[1763674715979,0.02143744,87437.0,87420.0,0.00044167]
[1763674716177,0.06082929,87436.0,87420.0,0.00044167]
[1763674716385,0.11476708,87441.0,87420.0,0.03443167]
[1763674716611,0.11476708,87441.0,87421.0,0.01372667]
[1763674716612,0.02143605,87440.0,87421.0,0.01372667]
[1763674716823,0.02143605,87439.0,87421.0,0.01372667]
[1763674717037,0.54044681,87440.0,87421.0,0.01372667]
[1763674717251,0.6059682,87440.0,87420.0,0.00044167]
[1763674717465,0.54044681,87430.0,87418.0,0.01642414]
[1763674717796,0.54044681,87430.0,87418.0,0.01654934]
[1763674718202,0.59449149,87430.0,87418.0,0.01654934]
[1763674718606,0.54044681,87430.0,87418.0,0.01654934]
[1763674718747,0.54044681,87430.0,87418.0,0.0001252]
[1763674724641,0.6059682,87440.0,87418.0,0.0001252]
[1763674724833,0.54044681,87440.0,87418.0,0.0001252]
[1763674725038,0.54044681,87440.0,87439.0,0.00053142]
[1763674725242,0.11476708,87441.0,87439.0,0.00053142]
[1763674725399,0.11476708,87441.0,87421.0,0.01668]
[1763674725603,0.11476708,87441.0,87440.0,0.00050016]
[1763674725798,0.43045551,87449.0,87440.0,0.00050016]
[1763674726001,0.11476708,87441.0,87421.0,0.01668]
[1763674726226,0.54044681,87440.0,87421.0,0.01668]
[1763674726595,0.11476708,87441.0,87421.0,0.05712228]
[1763674726820,0.54044681,87440.0,87421.0,0.06439667]
[1763674727025,0.54044681,87440.0,87422.0,0.03399]
[1763674727224,0.11476708,87441.0,87423.0,0.07197358]
[1763674727396,0.54044681,87440.0,87423.0,0.07197358]
[1763674727601,0.54044681,87440.0,87424.0,0.03399]
[1763674729341,0.11476708,87455.0,87424.0,0.03399]
[1763674729342,0.54044681,87450.0,87424.0,0.03399]
[1763674731010,0.54044681,87450.0,87425.0,0.01372605]
[1763674731311,0.54044681,87450.0,87448.0,0.00025006]
[1763674731488,3.0,87454.0,87448.0,0.00025006]
[1763674732450,0.001,87450.0,87448.0,0.00025006]
[1763674732976,3.0,87453.0,87448.0,0.00025006]
[1763674733279,0.00141648,87454.0,87448.0,0.00025006]
[1763674733728,0.00041648,87454.0,87448.0,0.00025006]
[1763674734109,0.001,87453.0,87448.0,0.00025006]
[1763674735321,0.00041648,87454.0,87448.0,0.00025006]
[1763674738135,0.04967204,87452.0,87448.0,0.00025006]
[1763674738340,0.04967204,87452.0,87414.0,0.0404568]
[1763674738341,3.0,87452.0,87414.0,0.0404568]
[1763674738538,0.11476708,87453.0,87411.0,0.0404568]
[1763674738539,0.54044681,87424.0,87411.0,0.0404568]
[1763674738743,0.54044681,87420.0,87409.0,0.01668]
[1763674738968,0.54044681,87420.0,87409.0,0.02406168]
[1763674739164,0.54044681,87430.0,87409.0,0.02406168]
[1763674739538,0.54044681,87420.0,87409.0,0.02406168]
[1763674739735,0.54044681,87420.0,87409.0,0.0168052]
[1763674739918,0.35530144,87420.0,87409.0,0.0168052]
[1763674740565,0.35530144,87420.0,87409.0,0.0001252]
[1763674740740,0.00876,87419.0,87405.0,0.08157228]
[1763674741225,0.00876,87419.0,87406.0,0.04771903]
[1763674741435,0.00876,87419.0,87409.0,0.001]
[1763674741638,0.00876,87419.0,87409.0,0.01472856]
[1763674742137,0.00876,87419.0,87409.0,0.001]
[1763674742348,0.00876,87410.0,87409.0,0.001]
[1763674742695,0.00876,87410.0,87401.0,0.01781]
[1763674742896,0.00876,87410.0,87405.0,0.001]
[1763674743106,0.00876,87419.0,87405.0,0.001]
[1763674743107,0.00925,87413.0,87405.0,0.001]
[1763674743353,0.00925,87418.0,87400.0,0.0004]
[1763674743503,0.00925,87418.0,87409.0,0.001]
[1763674743907,0.00925,87410.0,87400.0,0.0004]
[1763674744108,0.00925,87410.0,87405.0,0.001]
[1763674744312,0.00925,87418.0,87405.0,0.001]
[1763674744514,0.00876,87419.0,87409.0,0.00121962]
[1763674744771,0.00876,87419.0,87401.0,0.01781]
[1763674744970,0.00876,87419.0,87401.0,0.05054]
[1763674745209,0.00876,87419.0,87401.0,0.057415]
[1763674745788,0.00876,87419.0,87402.0,0.04645966]
[1763674745948,0.00876,87419.0,87404.0,0.11476708]
[1763674746152,0.00876,87419.0,87405.0,0.01372919]
[1763674746572,0.00876,87419.0,87403.0,0.03273]
[1763674747089,0.00876,87419.0,87401.0,0.01781]
[1763674747460,0.00876,87419.0,87404.0,0.11476708]
[1763674747661,0.00876,87419.0,87405.0,0.01372919]
[1763674748025,0.00925,87432.0,87418.0,0.15610708]
[1763674748157,0.00966655,87432.0,87419.0,0.01372699]
[1763674748355,0.00966655,87432.0,87420.0,0.03273]
[1763674748562,0.00966655,87432.0,87418.0,0.01781]
[1763674748921,0.00966655,87432.0,87419.0,0.11476708]
[1763674750228,0.00966655,87432.0,87420.0,0.01372683]
[1763674750434,0.00041655,87432.0,87431.0,0.04134]
[1763674750590,0.00041655,87432.0,87431.0,0.07407]
[1763674751977,0.00041655,87432.0,87431.0,0.07507]
[1763674752956,0.00041655,87432.0,87431.0,0.07707]
[1763674753306,0.00041655,87432.0,87431.0,0.04434]
[1763674754212,0.00041655,87432.0,87431.0,0.07707]
[1763674754518,0.00041655,87432.0,87431.0,0.04434]
[1763674755776,0.00041655,87432.0,87431.0,0.04487149]
[1763674755913,0.00041655,87432.0,87431.0,0.02134149]
[1763674756247,0.00041655,87432.0,87431.0,0.04487149]
[1763674756471,0.00041655,87432.0,87431.0,0.08536164]
[1763674756658,0.00041655,87432.0,87431.0,0.07760149]
[1763674757102,0.00041655,87432.0,87431.0,0.07460149]
[1763674757304,0.00041655,87432.0,87431.0,0.07560149]
[1763674757473,0.00041655,87432.0,87431.0,0.12870398]
[1763674757677,0.00041655,87432.0,87431.0,0.142947]
[1763674757846,0.00041655,87432.0,87431.0,0.141947]
[1763674758045,0.00041655,87432.0,87431.0,0.142947]
[1763674758644,0.00041655,87432.0,87431.0,0.141947]
[1763674758955,0.00041655,87432.0,87431.0,0.12770398]
[1763674759160,0.00041655,87432.0,87431.0,0.12670398]
[1763674759401,0.00041655,87432.0,87431.0,0.12870398]
[1763674759882,0.00041655,87432.0,87431.0,0.14342908]
[1763674760088,0.00041655,87432.0,87431.0,0.46642908]
[1763674760300,0.00041655,87432.0,87431.0,0.5568498]
[1763674760419,0.00041655,87432.0,87431.0,0.49634689]
[1763674760624,0.00041655,87432.0,87431.0,0.49934689]
[1763674760836,0.00041655,87432.0,87431.0,0.49734689]
[1763674761184,0.00041655,87432.0,87431.0,0.49834689]
[1763674761527,0.00041655,87432.0,87431.0,0.49934689]
[1763674763468,0.00041655,87432.0,87431.0,0.17634689]
[1763674763668,0.00041655,87432.0,87431.0,0.14342908]
[1763674763909,0.00041655,87432.0,87431.0,0.15267908]
[1763674765183,0.00041655,87432.0,87431.0,0.13895398]
[1763674766780,0.00041655,87432.0,87431.0,0.15267908]
[1763674766950,0.00041655,87432.0,87431.0,0.13895398]
[1763674767540,0.00041655,87432.0,87431.0,0.15889967]
[1763674770260,0.00041655,87432.0,87431.0,0.17262477]
[1763674771325,0.00041655,87432.0,87431.0,0.15267908]
[1763674771563,0.00041655,87432.0,87431.0,0.13895398]
[1763674773564,0.00041655,87432.0,87431.0,0.46195398]
[1763674774829,0.00041655,87432.0,87431.0,0.45895398]
[1763674775043,0.00041655,87432.0,87431.0,0.46095398]
[1763674775242,0.00041655,87432.0,87431.0,0.51509967]
[1763674775687,0.11476708,87465.0,87431.0,0.08785149]
[1763674776001,0.77187401,87460.0,87433.0,0.11476708]
[1763674776193,0.11489202,87465.0,87440.0,0.00025009]
[1763674776544,0.11489202,87465.0,87441.0,0.01619]
[1763674776763,0.11489202,87465.0,87441.0,0.02270201]
[1763674777192,0.11489202,87465.0,87441.0,0.05519201]
[1763674777916,0.11489202,87465.0,87441.0,0.02270201]
[1763674778174,0.11489202,87465.0,87441.0,0.01619]
[1763674779015,0.11489202,87465.0,87442.0,0.03249]
[1763674781210,0.00012494,87465.0,87443.0,0.01372322]
[1763674781583,0.00012494,87465.0,87442.0,0.03349]
[1763674781584,0.00012494,87465.0,87444.0,0.03249]
[1763674782236,0.00012494,87465.0,87445.0,0.01372291]
[1763674782539,0.00012494,87465.0,87446.0,0.0078843]
[1763674782695,0.00012494,87465.0,87447.0,0.12848967]
[1763674783125,0.00012494,87465.0,87448.0,0.03249]
[1763674785154,0.00012494,87465.0,87448.0,0.03349]
[1763674785307,0.00012494,87465.0,87449.0,0.01372228]
[1763674785709,0.00012494,87465.0,87449.0,0.04621228]
[1763674786159,0.54014195,87460.0,87448.0,0.001]
[1763674786382,0.05994065,87465.0,87448.0,0.001]
[1763674786720,0.54014195,87460.0,87448.0,0.001]
[1763674787144,0.54014195,87460.0,87434.0,0.11476708]
[1763674787355,0.54014195,87451.0,87434.0,0.11476708]
[1763674787549,0.54014195,87451.0,87449.0,0.001]
[1763674787758,0.54014195,87459.0,87434.0,0.11476708]
[1763674788014,0.54014195,87450.0,87434.0,0.11476708]
[1763674788218,0.54014195,87450.0,87448.0,0.001]
[1763674788404,0.54014195,87458.0,87434.0,0.11476708]
[1763674788530,0.54014195,87450.0,87434.0,0.11476708]
[1763674789075,0.54014195,87460.0,87434.0,0.11476708]
[1763674789272,0.00012494,87465.0,87448.0,0.11476708]
[1763674789467,0.00012494,87465.0,87449.0,0.04621228]
[1763674789671,0.00012494,87465.0,87449.0,0.06231022]
[1763674789886,0.00012494,87465.0,87450.0,0.03249]
[1763674790250,0.00012494,87465.0,87451.0,0.01619]
[1763674790479,0.00012494,87465.0,87464.0,0.01619]
[1763674791673,0.00012494,87465.0,87464.0,0.01719]
[1763674792259,0.00012494,87465.0,87464.0,0.01619]
[1763674794274,0.00012494,87465.0,87464.0,0.01719]
[1763674794471,0.00012494,87465.0,87456.0,0.01619]
[1763674794758,0.00012494,87465.0,87464.0,0.001]
[1763674796931,0.00012494,87465.0,87440.0,0.00025009]
[1763674797168,0.77148442,87460.0,87440.0,0.00025009]
[1763674797375,0.08863764,87459.0,87440.0,0.00025009]
[1763674797640,0.08863764,87459.0,87441.0,0.01619]
[1763674798455,0.323,87461.0,87441.0,0.01619]
[1763674799242,0.323,87461.0,87442.0,0.01372338]
[1763674800523,0.00012494,87465.0,87460.0,0.03888]
[1763674800724,0.00012494,87465.0,87464.0,0.13745708]
[1763674800840,0.00012494,87465.0,87464.0,0.15282179]
[1763674801046,0.00012494,87465.0,87464.0,0.23741428]
[1763674801047,4.94e-06,87465.0,87464.0,0.23741428]
[1763674801252,0.17589277,87509.0,87464.0,0.23741428]
[1763674801253,3.0,87510.0,87465.0,0.05210249]
[1763674801464,0.00012515,87510.0,87490.0,0.02269]
[1763674801693,0.00012515,87510.0,87491.0,0.04868]
[1763674801903,0.00012515,87510.0,87492.0,0.03249]
[1763674802305,0.77148442,87520.0,87492.0,0.03249]
[1763674802507,0.02141708,87519.0,87492.0,0.03249]
[1763674802745,0.78683395,87520.0,87484.0,0.01625]
[1763674802746,3.0,87508.0,87484.0,0.01625]
[1763674802949,0.11493394,87507.0,87484.0,0.01625]
[1763674803150,3.0,87508.0,87484.0,0.01625]
[1763674803360,3.0,87508.0,87479.0,0.01619]
[1763674803361,0.77148442,87494.0,87473.0,0.01625]
[1763674803578,0.77148442,87494.0,87464.0,0.19133]
[1763674803579,0.08862515,87493.0,87464.0,0.14514708]
[1763674804633,0.323,87494.0,87465.0,0.03038]
[1763674804842,0.001,87493.0,87468.0,0.01631515]
[1763674805530,0.323,87494.0,87468.0,0.01631515]
[1763674806782,0.324,87494.0,87468.0,0.01631515]
[1763674807203,0.00046853,87491.0,87468.0,0.04669515]
[1763674807423,0.11493394,87493.0,87468.0,0.04669515]
[1763674807604,0.323,87494.0,87469.0,0.03038]
[1763674808293,0.323,87494.0,87468.0,0.01631515]
[1763674810577,0.323,87494.0,87469.0,0.04409914]
[1763674810789,0.323,87494.0,87469.0,0.03038]
[1763674810957,0.09198966,87493.0,87469.0,0.03038]
[1763674811164,0.323,87494.0,87469.0,0.03038]
[1763674811367,3.0,87508.0,87493.0,0.03757]
[1763674811770,0.0343627,87514.0,87493.0,0.03757]
[1763674811979,3.0,87519.0,87493.0,0.06795]
[1763674812130,0.01458447,87519.0,87493.0,0.06795]
[1763674813304,0.7876294,87520.0,87493.0,0.06795]
[1763674813467,3.0,87519.0,87493.0,0.06771869]
[1763674813648,0.00056221,87494.0,87493.0,0.06771869]
[1763674814549,0.00056221,87494.0,87493.0,0.01625]
[1763674814772,0.00056221,87494.0,87493.0,0.03757]
[1763674814992,0.00056221,87494.0,87493.0,0.03857]
[1763674815226,0.00056221,87494.0,87493.0,0.06895]
[1763674816225,0.00056221,87494.0,87493.0,0.12205249]
[1763674816433,0.04075046,87548.0,87493.0,0.12205249]
[1763674816434,0.01565066,87532.0,87494.0,0.05210249]
[1763674816649,0.03435098,87542.0,87509.0,0.11476708]
[1763674816860,0.00024983,87502.0,87496.0,0.05210249]
[1763674817068,0.01551409,87532.0,87498.0,0.05210249]
[1763674817275,0.61287985,87530.0,87501.0,0.02132]
[1763674817485,0.13093228,87535.0,87509.0,0.11476708]
[1763674817911,0.13134919,87535.0,87510.0,0.01625]
[1763674818119,0.13134919,87535.0,87511.0,0.01776471]
[1763674818120,0.00041691,87535.0,87511.0,0.01776471]
[1763674818346,0.00041691,87535.0,87512.0,0.03038]
[1763674821576,0.00041691,87535.0,87534.0,0.01625]
[1763674821998,0.00041691,87535.0,87529.0,0.01625]
[1763674822656,0.00041691,87535.0,87534.0,0.02132]
[1763674823145,0.00169679,87535.0,87534.0,0.02132]
[1763674823275,0.00169679,87535.0,87534.0,0.0517]
[1763674824345,0.00169679,87535.0,87529.0,0.01625]
[1763674824562,0.00041691,87535.0,87529.0,0.01625]
[1763674824930,0.00041691,87535.0,87522.0,0.01625]
[1763674825130,0.03970401,87534.0,87513.0,0.08248249]
[1763674825358,0.00041691,87535.0,87515.0,0.05210249]
[1763674825565,0.00041691,87535.0,87514.0,0.03038]
[1763674825566,0.00041691,87535.0,87511.0,0.05210249]
[1763674825787,0.06132968,87534.0,87511.0,0.05210249]
[1763674826209,0.00041691,87535.0,87513.0,0.05210249]
[1763674826763,0.00041691,87535.0,87513.0,0.03038]
[1763674826991,0.00041691,87535.0,87514.0,0.03038]
[1763674827436,0.00041691,87535.0,87511.0,0.05210249]
[1763674827658,0.06132968,87534.0,87511.0,0.05210249]
[1763674827956,0.00041691,87535.0,87511.0,0.05210249]
[1763674827957,0.00041691,87535.0,87512.0,0.03038]
[1763674828928,0.61287985,87530.0,87510.0,0.01625]
[1763674829312,0.00041691,87535.0,87510.0,0.01625]
[1763674829515,0.00041691,87535.0,87511.0,0.03038]
[1763674829719,0.00112386,87530.0,87511.0,0.03038]
[1763674830036,0.61287985,87530.0,87510.0,0.01625]
[1763674830439,0.61287985,87530.0,87511.0,0.11476708]
[1763674830636,0.11476708,87528.0,87495.0,0.14510708]
[1763674830939,0.61287985,87520.0,87498.0,0.01478]
[1763674832222,0.61287985,87520.0,87498.0,0.04512]
[1763674832635,0.67416784,87520.0,87498.0,0.04512]
[1763674833437,0.50315126,87520.0,87498.0,0.04512]
[1763674833742,0.06128799,87520.0,87498.0,0.04512]
[1763674834041,0.11476708,87528.0,87498.0,0.04512]
[1763674834241,0.61287985,87520.0,87498.0,0.01478]
[1763674834589,0.61287985,87520.0,87493.0,0.04883]
[1763674834590,0.61287985,87520.0,87493.0,0.01625]
[1763674834785,0.61287985,87520.0,87494.0,0.11476708]
[1763674835204,0.61287985,87520.0,87486.0,0.03258]
[1763674835205,0.00056205,87512.0,87486.0,0.05210249]
[1763674835502,0.61287985,87510.0,87488.0,0.01347493]
[1763674835657,0.61287985,87510.0,87483.0,0.04829]
[1763674835873,0.61287985,87510.0,87483.0,0.01571]
[1763674836705,0.61287985,87510.0,87483.0,0.04829]
[1763674839139,0.61287985,87510.0,87483.0,0.01571]
[1763674840550,0.11476708,87514.0,87483.0,0.01571]
[1763674840551,0.00024983,87502.0,87483.0,0.01571]
[1763674840754,0.00024983,87502.0,87484.0,0.03258]
[1763674841279,0.00024983,87502.0,87485.0,0.01371663]
[1763674841676,0.00024983,87502.0,87486.0,0.03258]
[1763674841878,0.00024983,87502.0,87501.0,0.03631]
[1763674842370,0.00024983,87502.0,87490.0,0.61287985]
[1763674842371,0.00024983,87502.0,87480.0,0.03258]
[1763674842490,0.00024983,87502.0,87484.0,0.05210249]
[1763674842922,0.00024983,87502.0,87486.0,0.11476708]
[1763674844143,0.00024983,87502.0,87501.0,0.03631]
[1763674844562,0.00024983,87502.0,87501.0,0.01571]
[1763674844771,0.00024983,87502.0,87495.0,0.01571]
[1763674847612,0.00024983,87502.0,87501.0,0.0206]
[1763674847862,0.00024983,87502.0,87501.0,0.06664412]
[1763674848074,0.00024983,87502.0,87501.0,0.05293]
[1763674849242,0.00024983,87502.0,87501.0,0.05393]
[1763674849444,0.00024983,87502.0,87501.0,0.05293]
[1763674849878,0.00024983,87502.0,87501.0,0.05393]
[1763674851218,0.00024983,87502.0,87501.0,0.05293]
[1763674851393,0.00024983,87502.0,87501.0,0.05393]
[1763674851759,0.00024983,87502.0,87501.0,0.05293]
[1763674851957,0.00024983,87502.0,87501.0,0.05393]
[1763674853039,0.00024983,87502.0,87501.0,0.05493]
[1763674858081,0.00024983,87502.0,87501.0,0.10703249]
[1763674859165,0.00024983,87502.0,87501.0,0.002]
[1763674859384,0.00024983,87502.0,87501.0,0.05518]
[1763674861655,0.00024983,87502.0,87501.0,0.002]
[1763674863408,0.00024983,87502.0,87501.0,0.001]
[1763674863819,0.00024983,87502.0,87491.0,0.01371569]
[1763674864236,0.00024983,87502.0,87492.0,0.02918]
[1763674864479,0.00024983,87502.0,87493.0,0.01957595]
[1763674865049,0.00024983,87502.0,87493.0,0.01371538]
[1763674865405,0.00024983,87502.0,87493.0,0.02918]
[1763674865729,0.00024983,87502.0,87494.0,0.01371522]
[1763674865900,0.00024983,87502.0,87490.0,0.01571]
[1763674867857,0.00024983,87502.0,87485.0,0.00012515]
[1763674868256,0.11476708,87501.0,87485.0,0.00012515]
[1763674868460,0.62438154,87500.0,87485.0,0.00012515]
[1763674868830,3.0,87499.0,87485.0,0.00012515]
[1763674870870,3.0,87500.0,87485.0,0.00012515]
[1763674871477,3.0,87498.0,87485.0,0.00012515]
[1763674872009,0.001,87499.0,87485.0,0.00012515]
[1763674872164,3.0,87498.0,87485.0,0.00012515]
[1763674873102,3.0,87500.0,87485.0,0.00012515]
[1763674873262,3.0,87499.0,87485.0,0.00012515]
[1763674873710,3.0,87497.0,87485.0,0.00012515]
[1763674874742,0.001,87498.0,87485.0,0.00012515]
[1763674875369,0.001,87498.0,87486.0,0.02918]
[1763674875718,0.00024983,87502.0,87486.0,0.02918]
[1763674876236,0.001,87497.0,87487.0,0.01371632]
[1763674876556,0.00024983,87502.0,87487.0,0.01371632]
[1763674878182,0.00024983,87502.0,87486.0,0.02918]
[1763674878183,0.00024983,87502.0,87501.0,0.03658]
[1763674878559,0.00024983,87502.0,87501.0,0.06576]
[1763674879584,0.00024983,87502.0,87501.0,0.06676]
[1763674880933,0.00024983,87502.0,87501.0,0.06576]
[1763674881369,0.00024983,87502.0,87501.0,0.06776]
[1763674881522,0.11476708,87533.0,87504.0,0.11476708]
[1763674881733,3.0,87543.0,87505.0,0.05210249]
[1763674881935,0.0002,87550.0,87518.0,0.11476708]
[1763674882111,3.0,87548.0,87518.0,0.11476708]
[1763674882309,3.0,87548.0,87511.0,0.05210249]
[1763674882310,3.0,87548.0,87519.0,0.04453]
[1763674882510,3.0,87548.0,87519.0,0.01535]
[1763674882831,3.0,87547.0,87519.0,0.01535]
[1763674883156,3.0,87546.0,87519.0,0.01535]
[1763674883297,3.0,87546.0,87520.0,0.11476708]
[1763674883499,3.0,87546.0,87519.0,0.01535]
[1763674885980,3.0,87546.0,87520.0,0.11476708]
[1763674886131,3.0,87546.0,87521.0,0.01301171]
[1763674886935,3.0,87546.0,87522.0,0.02918]
[1763674887158,3.0,87546.0,87519.0,0.01535]
[1763674887640,0.00041717,87547.0,87519.0,0.06745249]
[1763674887641,0.00056197,87520.0,87519.0,0.06745249]
[1763674888096,0.00056197,87520.0,87519.0,0.08868249]
[1763674888321,0.00056197,87520.0,87519.0,0.11786249]
[1763674888891,0.00097888,87520.0,87519.0,0.11786249]
[1763674889336,0.00097888,87520.0,87519.0,0.11986249]
[1763674889531,0.00097888,87520.0,87519.0,0.12086249]
[1763674890159,0.00097888,87520.0,87519.0,0.13243874]
[1763674890489,0.00097888,87520.0,87519.0,0.12035249]
[1763674893493,0.00097888,87520.0,87519.0,0.003]
[1763674893707,0.00097888,87520.0,87519.0,0.0670413]
[1763674894078,0.00097888,87520.0,87519.0,0.11914379]
[1763674894634,0.00097888,87520.0,87519.0,0.10543249]
[1763674896271,0.00097888,87520.0,87519.0,0.11744674]
[1763674897655,0.00097888,87520.0,87519.0,0.10543249]
[1763674899196,0.00097888,87520.0,87519.0,0.44214379]
[1763674899393,0.00097888,87520.0,87519.0,0.42843249]
[1763674899745,0.0002,87550.0,87520.0,0.37510249]
[1763674899887,0.00032502,87550.0,87549.0,0.03417]
[1763674900096,0.00032502,87550.0,87540.0,0.01471]
[1763674900295,0.00032502,87550.0,87530.0,0.01471]
[1763674901116,0.00032502,87550.0,87531.0,0.03087]
[1763674901324,0.00032502,87550.0,87532.0,0.01603471]
[1763674901952,0.00032502,87550.0,87531.0,0.08297249]
[1763674902536,0.00032502,87550.0,87531.0,0.03087]
[1763674902940,0.00032502,87550.0,87549.0,0.01946]
[1763674903850,0.00032502,87550.0,87542.0,0.03087]
[1763674904152,0.00032502,87550.0,87543.0,0.01593451]
[1763674904322,0.00032502,87550.0,87549.0,0.01946]
[1763674904701,0.00032502,87550.0,87544.0,0.03087]
[1763674904928,0.00032502,87550.0,87549.0,0.001]
[1763674905578,0.00126121,87550.0,87531.0,0.05210249]
[1763674905781,0.00032502,87550.0,87531.0,0.08297249]
[1763674905931,0.00032502,87550.0,87533.0,0.05210249]
[1763674906140,0.00032502,87550.0,87534.0,0.00976825]
[1763674906340,0.00032502,87550.0,87534.0,0.04063825]
[1763674906740,0.00032502,87550.0,87544.0,0.001]
[1763674907374,0.00032502,87550.0,87535.0,0.03087]
[1763674908195,0.00032502,87550.0,87536.0,0.01370864]
[1763674908397,0.00032502,87550.0,87544.0,0.001]
[1763674908558,0.00032502,87550.0,87549.0,0.01946]
[1763674908766,0.00032502,87550.0,87549.0,0.07156249]
[1763674908971,0.00032502,87550.0,87549.0,0.10243249]
[1763674910813,0.00032502,87550.0,87549.0,0.10343249]
[1763674911221,0.00032502,87550.0,87549.0,0.10243249]
[1763674911436,0.00126121,87550.0,87549.0,0.10243249]
[1763674911639,0.00126121,87550.0,87549.0,0.10343249]
[1763674915420,0.00126121,87550.0,87549.0,0.1171391]
[1763674916273,0.00126121,87550.0,87549.0,0.1161391]
[1763674916393,0.00126121,87550.0,87549.0,0.48259501]
[1763674916596,0.00126121,87550.0,87549.0,0.44352446]
[1763674920718,0.00126121,87550.0,87549.0,0.001]
[1763674921646,0.00126121,87550.0,87525.0,0.11476708]
[1763674921647,0.00126121,87550.0,87526.0,0.03087]
[1763674921855,0.00126121,87550.0,87525.0,0.05210249]
[1763674921856,0.11476708,87548.0,87525.0,0.05210249]
[1763674922059,0.11476708,87548.0,87526.0,0.11476708]
[1763674922060,0.12627629,87548.0,87526.0,0.11476708]
[1763674922303,0.00032502,87550.0,87526.0,0.14563708]
[1763674922504,0.00032502,87550.0,87527.0,0.02803]
[1763674922914,0.00032502,87550.0,87526.0,0.11476708]
[1763674923139,0.11476708,87549.0,87524.0,0.08013249]
[1763674923358,0.00032502,87550.0,87549.0,0.03407]
[1763674923887,0.00032502,87550.0,87549.0,0.0621]
[1763674924060,0.00032502,87550.0,87549.0,0.11420249]
[1763674924900,0.00032502,87550.0,87549.0,0.16803002]
[1763674925382,0.00032502,87550.0,87549.0,0.1279091]
[1763674925538,0.00032502,87550.0,87549.0,0.14675893]
[1763674925742,0.00032502,87550.0,87549.0,0.46975893]
[1763674925949,0.00032502,87550.0,87549.0,0.45605232]
[1763674926282,0.00032502,87550.0,87549.0,0.45705232]
[1763674926704,0.00032502,87550.0,87549.0,0.45605232]
[1763674927474,0.00032502,87550.0,87549.0,0.53730442]
[1763674927880,0.00126121,87550.0,87549.0,0.45805232]
[1763674928586,0.00126121,87550.0,87549.0,0.45605232]
[1763674928803,0.00126121,87550.0,87549.0,0.45805232]
[1763674929247,0.0002,87560.0,87549.0,0.45805232]
[1763674929248,0.0002,87560.0,87550.0,0.38510248]
[1763674929450,0.0002,87570.0,87561.0,0.05210249]
[1763674929662,0.003536,87587.0,87579.0,0.0194]
[1763674929850,0.00366098,87587.0,87586.0,0.08617249]
[1763674930043,0.00366098,87587.0,87586.0,0.12983688]
[1763674930254,0.00366098,87587.0,87586.0,0.11420249]
[1763674930463,0.00366098,87587.0,87586.0,0.43720249]
[1763674930648,0.00366098,87587.0,87586.0,0.46727329]
[1763674930849,0.00366098,87587.0,87586.0,0.43720249]
[1763674931098,0.00366098,87587.0,87586.0,0.53647224]
[1763674931298,0.00366098,87587.0,87586.0,0.4763253]
[1763674931887,0.00366098,87587.0,87586.0,0.4773253]
[1763674932441,0.00366098,87587.0,87586.0,0.4763253]
[1763674932636,0.00366098,87587.0,87586.0,0.4783253]
[1763674932849,0.11476708,87635.0,87610.0,0.05210249]
[1763674933233,0.11476708,87635.0,87609.0,0.11476708]
[1763674933234,0.11518384,87635.0,87611.0,0.03135696]
[1763674933439,0.00041676,87635.0,87611.0,0.03135696]
[1763674933644,0.00041676,87635.0,87612.0,0.02803]
[1763674933848,0.01819162,87635.0,87612.0,0.02803]
[1763674934053,0.00041676,87635.0,87613.0,0.0174154]
[1763674934278,0.00041676,87635.0,87612.0,0.02803]
[1763674934486,0.00041676,87635.0,87612.0,0.0079]
[1763674934694,0.00041676,87635.0,87611.0,0.01467]
[1763674934695,0.00972,87634.0,87611.0,0.01467]
[1763674935103,0.00041676,87635.0,87612.0,0.11476708]
[1763674935302,0.00041676,87635.0,87613.0,0.01294371]
[1763674935510,0.01784971,87635.0,87613.0,0.01294371]
[1763674935719,0.00041676,87635.0,87613.0,0.01294371]
[1763674935927,0.00199541,87614.0,87613.0,0.33594371]
[1763674936332,0.00199541,87614.0,87613.0,0.35534371]
[1763674936540,0.00199541,87614.0,87613.0,0.38337371]
[1763674936953,0.11476708,87646.0,87613.0,0.35534371]
[1763674937106,0.11476708,87646.0,87614.0,0.06089152]
[1763674937107,3.0,87645.0,87614.0,0.06089152]
[1763674937307,3.0,87645.0,87615.0,0.02803]
[1763674938103,3.0,87644.0,87613.0,0.001]
[1763674938284,3.0,87639.0,87611.0,0.01467]
[1763674938492,3.0,87643.0,87612.0,0.14279708]
[1763674939716,3.01725734,87645.0,87612.0,0.14279708]
[1763674939923,3.0,87643.0,87613.0,0.01574671]
[1763674940132,3.0,87643.0,87613.0,0.04377671]
[1763674940948,3.0,87639.0,87613.0,0.04377671]
[1763674941454,3.0,87639.0,87611.0,0.01467]
[1763674941644,0.61139945,87623.0,87600.0,0.05210249]